fUST/lending_fUST_20260101
["ID","MTS","AMOUNT","RATE_DAILY","PERIOD"]
[400230991,1767207055500,-600.0,0.00037028,2]
[400230992,1767207055510,-726.0,0.00037039,11]
[400230993,1767207055519,-726.0,0.00037039,11]
[400230994,1767207055529,-169.32246815,0.00037041,30]
[400230995,1767207055539,-376.3998898,0.0003709,30]
[400230996,1767207055549,-376.3998898,0.0003709,30]
[400230997,1767207055559,-376.3998898,0.0003709,30]
[400230998,1767207055569,-376.3998898,0.0003709,30]
[400230999,1767207055578,-376.3998898,0.0003709,30]
[400231000,1767207055587,-376.3998898,0.0003709,30]
[400231001,1767207055597,-376.3998898,0.0003709,30]
[400231002,1767207055607,-376.3998898,0.0003709,30]
[400231003,1767207055616,-376.3998898,0.0003709,30]
[400231004,1767207055626,-376.3998898,0.0003709,30]
[400231005,1767207055636,-376.3998898,0.0003709,30]
[400231006,1767207055645,-376.3998898,0.0003709,30]
[400231007,1767207055656,-376.3998898,0.0003709,30]
[400231008,1767207055665,-376.3998898,0.0003709,30]
[400231009,1767207055675,-376.3998898,0.0003709,30]
[400231010,1767207055684,-376.3998898,0.0003709,30]
[400231011,1767207055694,-151.0,0.000371,31]
[400231012,1767207055703,-151.0,0.000371,31]
[400231013,1767207055713,-153.327647,0.000371,31]
[400231014,1767207055722,-151.0,0.000371,31]
[400231015,1767207055732,-151.0,0.000371,31]
[400231016,1767207055742,-151.0,0.000371,31]
[400231017,1767207055751,-151.0,0.000371,31]
[400231018,1767207055760,-151.0,0.000371,31]
[400231019,1767207055770,-151.0,0.000371,31]
[400231020,1767207055780,-151.0,0.000371,31]
[400231021,1767207055789,-151.0,0.000371,31]
[400231022,1767207055799,-151.0,0.000371,31]
[400231023,1767207055809,-151.0,0.000371,31]
[400231024,1767207055818,-151.0,0.000371,31]
[400231025,1767207055827,-151.0,0.000371,31]
[400231026,1767207055837,-151.0,0.000371,31]
[400231027,1767207055846,-151.0,0.000371,31]
[400231028,1767207055856,-151.0,0.000371,31]
[400231029,1767207055864,-151.0,0.000371,31]
[400231030,1767207055874,-166.656279,0.000371,31]
[400231031,1767207055885,-369.80664376,0.0003713,120]
[400231032,1767207055896,-202.21692799,0.00037154,9]
[400231033,1767207055906,-256.96798475,0.00037171,7]
[400231034,1767207055916,-177.40903071,0.00037171,7]
[400231035,1767207055927,-226.09074289,0.00037171,7]
[400231036,1767207055936,-903.4586086,0.00037171,7]
[400231037,1767207055946,-194.54921139,0.00037171,7]
[400231038,1767207055956,-777.41864871,0.00037171,7]
[400231039,1767207055966,-486.1189228,0.00037171,7]
[400231040,1767207055977,-151.0,0.00037188,31]
[400231041,1767207055987,-151.0,0.00037188,31]
[400231042,1767207055998,-151.0,0.00037188,31]
[400231043,1767207056013,-151.0,0.00037188,31]
[400231044,1767207056033,-151.0,0.00037188,31]
[400231045,1767207056048,-151.0,0.00037188,31]
[400231046,1767207056057,-151.0,0.00037188,31]
[400231047,1767207056067,-151.0,0.00037188,31]
[400231048,1767207056076,-159.852465,0.00037188,31]
[400231049,1767207056158,-151.0,0.00037188,31]
[400231050,1767207056168,-151.0,0.00037188,31]
[400231051,1767207056178,-151.0,0.00037188,31]
[400231052,1767207056187,-151.0,0.00037188,31]
[400231053,1767207056197,-151.0,0.00037188,31]
[400231054,1767207056206,-151.0,0.00037188,31]
[400231055,1767207056215,-249.08345827,0.00037188,31]
[400231056,1767207056225,-151.0,0.00037188,31]
[400231057,1767207056235,-151.0,0.00037188,31]
[400231058,1767207056244,-151.0,0.00037188,31]
[400231059,1767207056254,-254.893875,0.00037188,31]
[400231060,1767207056264,-151.0,0.00037188,31]
[400231061,1767207056274,-254.893875,0.00037188,31]
[400231062,1767207056284,-151.0,0.00037188,31]
[400231063,1767207056294,-151.0,0.00037188,31]
[400231064,1767207056304,-254.893875,0.00037188,31]
[400231065,1767207056314,-254.893875,0.00037188,31]
[400231066,1767207056323,-151.0,0.00037188,31]
[400231067,1767207056333,-254.893867,0.00037188,31]
[400231068,1767207056343,-151.0,0.00037188,31]
[400231069,1767207056353,-181.96895,0.00037188,31]
[400231070,1767207056362,-151.0,0.00037188,31]
[400231071,1767207056372,-151.0,0.00037188,31]
[400231072,1767207056382,-151.0,0.00037188,31]
[400231073,1767207056391,-151.0,0.00037188,31]
[400231074,1767207056401,-151.0,0.00037188,31]
[400231075,1767207056411,-151.0,0.00037188,31]
[400231076,1767207056420,-151.0,0.00037188,31]
[400231077,1767207056430,-151.0,0.00037188,31]
[400231078,1767207056441,-151.0,0.00037188,31]
[400231079,1767207056450,-151.0,0.00037188,31]
[400231080,1767207056459,-151.0,0.00037188,31]
[400231081,1767207056469,-183.307303,0.00037188,31]
[400231082,1767207056479,-151.0,0.00037188,31]
[400231083,1767207056488,-151.0,0.00037188,31]
[400231084,1767207056498,-151.0,0.00037188,31]
[400231085,1767207056507,-151.0,0.00037188,31]
[400231086,1767207056517,-151.0,0.00037188,31]
[400231087,1767207056527,-151.0,0.00037188,31]
[400231088,1767207056538,-198.1655,0.00037188,31]
[400231089,1767207056548,-151.0,0.00037188,31]
[400231090,1767207056557,-151.0,0.00037188,31]
[400231091,1767207056567,-151.0,0.00037188,31]
[400231092,1767207056577,-151.0,0.00037188,31]
[400231093,1767207056587,-151.0,0.00037188,31]
[400231094,1767207056596,-151.0,0.00037188,31]
[400231095,1767207056606,-151.0,0.00037188,31]
[400231096,1767207056616,-151.0,0.00037188,31]
[400231097,1767207056626,-151.0,0.00037188,31]
[400231098,1767207056635,-151.0,0.00037188,31]
[400231099,1767207056645,-151.0,0.00037188,31]
[400231100,1767207056655,-151.0,0.00037188,31]
[400231101,1767207056664,-158.892051,0.00037188,31]
[400231102,1767207056675,-158.892051,0.00037188,31]
[400231103,1767207056684,-158.892051,0.00037188,31]
[400231104,1767207056694,-158.892051,0.00037188,31]
[400231105,1767207056703,-158.892051,0.00037188,31]
[400231106,1767207056713,-158.892051,0.00037188,31]
[400231107,1767207056724,-158.892051,0.00037188,31]
[400231108,1767207056734,-158.8920446,0.00037188,31]
[400231109,1767207056743,-151.0,0.00037188,31]
[400231110,1767207056753,-151.0,0.00037188,31]
[400231111,1767207056763,-151.0,0.00037188,31]
[400231112,1767207056772,-151.0,0.00037188,31]
[400231113,1767207056782,-151.0,0.00037188,31]
[400231114,1767207056792,-151.0,0.00037193,31]
[400231115,1767207056801,-151.0,0.00037193,31]
[400231116,1767207056810,-151.0,0.00037193,31]
[400231117,1767207056819,-151.0,0.00037193,31]
[400231118,1767207056829,-151.0,0.00037193,31]
[400231119,1767207056838,-151.0,0.00037193,31]
[400231120,1767207056849,-1419.163026,0.00037193,31]
[400231121,1767207056858,-1419.163026,0.00037193,31]
[400231122,1767207056868,-151.0,0.00037193,31]
[400231123,1767207056879,-151.0,0.00037193,31]
[400231124,1767207056890,-1419.163026,0.00037193,31]
[400231125,1767207056899,-1419.163026,0.00037193,31]
[400231126,1767207056909,-1419.163026,0.00037193,31]
[400231127,1767207056919,-1419.163026,0.00037193,31]
[400231128,1767207056929,-1419.163026,0.00037193,31]
[400231129,1767207056939,-1419.163021,0.00037193,31]
[400231130,1767207056948,-171.736498,0.00037193,31]
[400231131,1767207056958,-171.736498,0.00037193,31]
[400231132,1767207056969,-171.736498,0.00037193,31]
[400231133,1767207056978,-171.736498,0.00037193,31]
[400231134,1767207056987,-171.736498,0.00037193,31]
[400231135,1767207056998,-171.736498,0.00037193,31]
[400231136,1767207057007,-171.736498,0.00037193,31]
[400231137,1767207057017,-171.736495,0.00037193,31]
[400231138,1767207057027,-947.358642,0.00037193,31]
[400231139,1767207057036,-947.358642,0.00037193,31]
[400231140,1767207057045,-947.358642,0.00037193,31]
[400231141,1767207057055,-947.358642,0.00037193,31]
[400231142,1767207057064,-947.358642,0.00037193,31]
[400231143,1767207057073,-947.358642,0.00037193,31]
[400231144,1767207057082,-947.358642,0.00037193,31]
[400231145,1767207057092,-947.358641,0.00037193,31]
[400231146,1767207057101,-299.126563,0.00037193,31]
[400231147,1767207057110,-151.0,0.00037193,31]
[400231148,1767207057120,-153.744785,0.00037193,31]
[400231149,1767207057128,-153.744785,0.00037193,31]
[400231150,1767207057138,-153.744785,0.00037193,31]
[400231151,1767207057147,-153.744794,0.00037193,31]
[400231152,1767207057156,-151.0,0.00037193,31]
[400231153,1767207057166,-151.0,0.00037193,31]
[400231154,1767207057175,-270.657289,0.00037193,31]
[400231155,1767207057185,-270.657289,0.00037193,31]
[400231156,1767207057195,-270.657289,0.00037193,31]
[400231157,1767207057204,-351.647028,0.00037193,31]
[400231158,1767207057214,-270.657292,0.00037193,31]
[400231159,1767207057223,-351.647028,0.00037193,31]
[400231160,1767207057233,-151.0,0.00037193,31]
[400231161,1767207057243,-351.647028,0.00037193,31]
[400231162,1767207057252,-175.374608,0.00037193,31]
[400231163,1767207057262,-351.64702,0.00037193,31]
[400231164,1767207057271,-315.210295,0.00037193,31]
[400231165,1767207057281,-315.210295,0.00037193,31]
[400231166,1767207057290,-315.210295,0.00037193,31]
[400231167,1767207057299,-315.210286,0.00037193,31]
[400231168,1767207057309,-1087.238041,0.00037193,31]
[400231169,1767207057318,-1087.238041,0.00037193,31]
[400231170,1767207057328,-1087.238041,0.00037193,31]
[400231171,1767207057339,-1087.238034,0.00037193,31]
[400231172,1767207057348,-579.465896,0.00037193,31]
[400231173,1767207057358,-579.465896,0.00037193,31]
[400231174,1767207057367,-579.465896,0.00037193,31]
[400231175,1767207057378,-579.465893,0.00037193,31]
[400231176,1767207057387,-414.72566,0.00037193,31]
[400231177,1767207057397,-414.72566,0.00037193,31]
[400231178,1767207057407,-414.72566,0.00037193,31]
[400231179,1767207057417,-414.725655,0.00037193,31]
[400231180,1767207057427,-440.924061,0.00037193,31]
[400231181,1767207057437,-440.924061,0.00037193,31]
[400231182,1767207057447,-440.924061,0.00037193,31]
[400231183,1767207057456,-440.924059,0.00037193,31]
[400231184,1767207057465,-151.0,0.00037193,31]
[400231185,1767207057475,-151.0,0.00037193,31]
[400231186,1767207057485,-612.575308,0.00037193,31]
[400231187,1767207057494,-612.575308,0.00037193,31]
[400231188,1767207057504,-612.575308,0.00037193,31]
[400231189,1767207057514,-612.575314,0.00037193,31]
[400231190,1767207057523,-151.0,0.00037193,31]
[400231191,1767207057533,-435.404982,0.00037193,31]
[400231192,1767207057543,-352.845551,0.00037193,31]
[400231193,1767207057552,-270.454127,0.00037193,31]
[400231194,1767207057561,-435.404982,0.00037193,31]
[400231195,1767207057571,-352.845551,0.00037193,31]
[400231196,1767207057581,-270.454127,0.00037193,31]
[400231197,1767207057590,-352.845551,0.00037193,31]
[400231198,1767207057600,-435.404982,0.00037193,31]
[400231199,1767207057681,-270.454127,0.00037193,31]
[400231200,1767207057691,-352.845542,0.00037193,31]
[400231201,1767207057701,-435.404991,0.00037193,31]
[400231202,1767207057710,-270.454126,0.00037193,31]
[400231203,1767207057719,-151.0,0.00037193,31]
[400231204,1767207057729,-151.0,0.00037193,31]
[400231205,1767207057738,-151.0,0.00037193,31]
[400231206,1767207057747,-151.0,0.00037193,31]
[400231207,1767207057756,-394.521351,0.00037193,31]
[400231208,1767207057765,-429.596572,0.00037193,31]
[400231209,1767207057775,-394.521351,0.00037193,31]
[400231210,1767207057784,-429.596572,0.00037193,31]
[400231211,1767207057794,-394.521351,0.00037193,31]
[400231212,1767207057804,-429.596572,0.00037193,31]
[400231213,1767207057813,-394.521344,0.00037193,31]
[400231214,1767207057823,-429.59657,0.00037193,31]
[400231215,1767207057832,-1525.36,0.00037232,60]
[400231216,1767207057842,-800.0,0.00037238,7]
[400231217,1767207057852,-805.861522,0.00037254,31]
[400231218,1767207057862,-805.861522,0.00037254,31]
[400231219,1767207057871,-151.0,0.00037254,31]
[400231220,1767207057881,-805.861522,0.00037254,31]
[400231221,1767207057894,-151.0,0.00037254,31]
[400231222,1767207057903,-805.861521,0.00037254,31]
[400231223,1767207057912,-151.0,0.00037254,31]
[400231224,1767207057922,-1973.671944,0.00037254,31]
[400231225,1767207057933,-1973.671944,0.00037254,31]
[400231226,1767207057942,-1973.671944,0.00037254,31]
[400231227,1767207057951,-1973.671949,0.00037254,31]
[400231228,1767207057962,-151.0,0.00037254,31]
[400231229,1767207057971,-227.124845,0.00037254,31]
[400231230,1767207057981,-227.124845,0.00037254,31]
[400231231,1767207057989,-227.124845,0.00037254,31]
[400231232,1767207057998,-227.124846,0.00037254,31]
[400231233,1767207058007,-1549.100689,0.00037254,31]
[400231234,1767207058016,-1549.100689,0.00037254,31]
[400231235,1767207058025,-1549.100689,0.00037254,31]
[400231236,1767207058034,-1549.100685,0.00037254,31]
[400231237,1767207058043,-230.54366,0.00037254,31]
[400231238,1767207058053,-230.54366,0.00037254,31]
[400231239,1767207058062,-230.54366,0.00037254,31]
[400231240,1767207058071,-230.543662,0.00037254,31]
[400231241,1767207058081,-906.127244,0.00037254,31]
[400231242,1767207058090,-906.127244,0.00037254,31]
[400231243,1767207058099,-906.127244,0.00037254,31]
[400231244,1767207058109,-906.127244,0.00037254,31]
[400231245,1767207058118,-906.127244,0.00037254,31]
[400231246,1767207058127,-906.127244,0.00037254,31]
[400231247,1767207058136,-906.127244,0.00037254,31]
[400231248,1767207058146,-906.127242,0.00037254,31]
[400231249,1767207058155,-151.0,0.00037254,31]
[400231250,1767207058164,-151.0,0.00037254,31]
[400231251,1767207058174,-151.0,0.00037254,7]
[400231252,1767207058183,-151.0,0.00037254,7]
[400231253,1767207058192,-151.0,0.00037254,7]
[400231254,1767207058201,-171.760476,0.00037254,28]
[400231255,1767207058210,-151.0,0.00037254,7]
[400231256,1767207058219,-197.239144,0.00037254,7]
[400231257,1767207058228,-151.0,0.00037254,31]
[400231258,1767207058237,-151.0,0.00037254,31]
[400231259,1767207058246,-193.357014,0.00037254,31]
[400231260,1767207058255,-193.357014,0.00037254,31]
[400231261,1767207058264,-151.0,0.00037254,31]
[400231262,1767207058273,-151.0,0.00037254,31]
[400231263,1767207058282,-193.357014,0.00037254,31]
[400231264,1767207058292,-193.357014,0.00037254,31]
[400231265,1767207058301,-193.357014,0.00037254,31]
[400231266,1767207058311,-193.357014,0.00037254,31]
[400231267,1767207058319,-193.357014,0.00037254,31]
[400231268,1767207058329,-193.357023,0.00037254,31]
[400231269,1767207058338,-151.0,0.00037254,31]
[400231270,1767207058347,-151.0,0.00037254,31]
[400231271,1767207058356,-151.0,0.00037254,31]
[400231272,1767207058366,-151.0,0.00037254,31]
[400231273,1767207058375,-151.0,0.00037254,31]
[400231274,1767207058384,-151.0,0.00037254,31]
[400231275,1767207058395,-151.0,0.00037254,31]
[400231276,1767207058405,-151.0,0.00037254,31]
[400231277,1767207058414,-151.0,0.00037254,31]
[400231278,1767207058424,-156.562526,0.00037254,31]
[400231279,1767207058433,-856.210546,0.00037254,31]
[400231280,1767207058443,-856.210546,0.00037254,31]
[400231281,1767207058452,-856.210546,0.00037254,31]
[400231282,1767207058462,-856.210546,0.00037254,31]
[400231283,1767207058473,-856.210546,0.00037254,31]
[400231284,1767207058482,-856.210546,0.00037254,31]
[400231285,1767207058491,-834699.86370531,0.00037254,20]
[400231286,1767207058586,-1247.75,0.00023561,2]
[400231287,1767207058595,-752.25,0.00037254,20]
[400231288,1767207058607,-1940.29941832,0.00037254,20]
[400231289,1767207058617,-1110.91799407,0.00037254,20]
[400231290,1767207058682,-247.41203954,0.00037254,20]
[400231291,1767207058692,-7867.23047152,0.00037254,20]
[400231292,1767207059629,-4413.39904072,0.00037254,20]
[400231293,1767207059741,-500.0,0.00021917,2]
[400231294,1767207059750,-500.0,0.00022191,2]
[400231295,1767207059761,-501.91756941,0.00022465,2]
[400231296,1767207059770,-733.75752699,0.00023835,2]
[400231297,1767207059938,-513.99247301,0.00023835,2]
[400231298,1767207059947,-1247.75,0.00024109,2]
[400231299,1767207059956,-197.70005898,0.00024383,2]
[400231300,1767207060028,-1050.04994102,0.00024383,2]
[400231301,1767207060038,-904.57256066,0.00024657,2]
[400231302,1767207060051,-343.17743934,0.00024657,2]
[400231303,1767207060062,-1247.75,0.00024931,2]
[400231304,1767207060071,-1247.75,0.00025205,2]
[400231305,1767207060081,-1247.75,0.00025479,2]
[400231306,1767207060090,-1247.75,0.00025753,2]
[400231307,1767207060100,-1247.75,0.00026027,2]
[400231308,1767207060109,-1247.75,0.00026301,2]
[400231309,1767207060119,-1247.75,0.00026575,2]
[400231310,1767207060128,-1247.75,0.00026849,2]
[400231311,1767207060137,-1247.75,0.00027123,2]
[400231312,1767207060148,-2000.0,0.00027343,7]
[400231313,1767207060158,-1247.75,0.00027397,2]
[400231314,1767207060167,-1247.75,0.00027671,2]
[400231315,1767207060178,-378.060177,0.000277,7]
[400231316,1767207060187,-113.95281426,0.000277,7]
[400231320,1767207307950,200.0,0.00028767,120]
[400231369,1767207647877,171.739114,5.643e-05,2]
[400231376,1767207773499,162.683975,0.00011328,120]
[400231383,1767208080675,5000.0,0.00010954,2]
[400231384,1767208104208,5000.0,0.00010954,2]
[400231385,1767208127427,5000.0,0.00010954,2]
[400231386,1767208154129,-1400.3074012,0.00011035,2]
[400231387,1767208154151,-299.39281903,0.00011104,2]
[400231388,1767208154171,-300.0,0.00011172,2]
[400231389,1767208154192,-300.0,0.00011172,2]
[400231390,1767208154212,-6232.816,0.00011173,5]
[400231391,1767208154231,-164.60000002,0.00011173,2]
[400231392,1767208154254,-171.739114,0.00011286,2]
[400231393,1767208154273,-162.683975,0.00011328,2]
[400231394,1767208154294,-6470.3252378,0.00011739,2]
[400231395,1767208154314,-173.554,0.00012301,2]
[400231396,1767208154334,-2280.2432765,0.00012301,2]
[400231397,1767208154354,-188.63,0.00012329,2]
[400231398,1767208154373,-157.19,0.00012329,2]
[400231399,1767208154393,-166.72,0.00012329,2]
[400231400,1767208154413,-168.7,0.00012329,2]
[400231401,1767208154432,-289.44,0.00012329,2]
[400231402,1767208154452,-241.2,0.00012329,2]
[400231403,1767208154472,-201.0,0.00012329,2]
[400231404,1767208154492,-167.5,0.00012329,2]
[400231405,1767208154512,-837.55,0.00012329,2]
[400231406,1767208154532,-305.77,0.00012551,2]
[400231407,1767208154552,-305.77,0.00012825,2]
[400231408,1767208154573,-2914.68395917,0.00013004,2]
[400231409,1767208154593,-305.78,0.00013099,2]
[400231410,1767208154613,-353.28352646,0.00013104,2]
[400231411,1767208154634,-544.44,0.00013196,2]
[400231412,1767208154655,-500.0,0.00013273,2]
[400231413,1767208154674,-500.0,0.00013273,2]
[400231414,1767208154694,-500.0,0.00013273,2]
[400231415,1767208154714,-500.0,0.00013273,2]
[400231416,1767208154734,-500.0,0.00013273,2]
[400231417,1767208154754,-500.0,0.00013273,2]
[400231418,1767208154774,-500.0,0.00013273,2]
[400231419,1767208154793,-500.0,0.00013273,2]
[400231420,1767208154820,-758.8830083,0.00013312,2]
[400231421,1767208154841,-300.0,0.00013673,2]
[400231422,1767208154863,-500.0,0.00013698,2]
[400231423,1767208154884,-219.12958017,0.00013698,2]
[400231424,1767208154905,-188.1770885,0.00013698,2]
[400231425,1767208154926,-500.0,0.00013698,2]
[400231426,1767208154947,-297.04310523,0.00013698,2]
[400231427,1767208154969,-500.0,0.00013698,2]
[400231428,1767208154990,-500.0,0.00013698,2]
[400231429,1767208155010,-500.0,0.00013698,2]
[400231430,1767208155031,-636.65231316,0.00013698,2]
[400231431,1767208155052,-500.0,0.00013698,2]
[400231432,1767208155071,-500.0,0.00013698,2]
[400231433,1767208155091,-500.0,0.00013698,2]
[400231434,1767208155111,-500.0,0.00013698,2]
[400231435,1767208155130,-15490.5579877,0.00013699,2]
[400231436,1767208155150,-2942.9097946,0.00013699,2]
[400231437,1767208155169,-2111.685824,0.00013699,2]
[400231438,1767208155188,-500.0,0.00013699,2]
[400231439,1767208155209,-503.63330533,0.00013699,2]
[400231440,1767208155228,-500.0,0.00013699,2]
[400231441,1767208155251,-500.0,0.00013699,2]
[400231442,1767208155271,-500.0,0.00013699,2]
[400231443,1767208155292,-500.0,0.00013699,2]
[400231444,1767208155314,-500.0,0.00013699,2]
[400231445,1767208155335,-500.0,0.00013699,2]
[400231446,1767208155355,-500.0,0.00013699,2]
[400231447,1767208155375,-500.0,0.00013699,2]
[400231448,1767208155394,-215.96285583,0.00013699,2]
[400231449,1767208155415,-500.0,0.00013699,2]
[400231450,1767208155435,-500.0,0.00013699,2]
[400231451,1767208155455,-500.0,0.00013699,2]
[400231452,1767208155475,-500.0,0.00013699,2]
[400231453,1767208155495,-500.0,0.00013699,2]
[400231454,1767208155514,-500.0,0.00013699,2]
[400231455,1767208155534,-500.0,0.00013699,2]
[400231456,1767208155556,-500.0,0.00013699,2]
[400231457,1767208155576,-500.0,0.00013699,2]
[400231458,1767208155596,-500.0,0.00013699,2]
[400231459,1767208155617,-500.0,0.00013699,2]
[400231460,1767208155639,-640.43328227,0.00013699,2]
[400231461,1767208155659,-500.0,0.00013699,2]
[400231462,1767208155679,-500.0,0.00013699,2]
[400231463,1767208155699,-500.0,0.00013699,2]
[400231464,1767208155718,-500.0,0.00013699,2]
[400231465,1767208155739,-500.0,0.00013699,2]
[400231466,1767208155760,-1000.0,0.00013821,2]
[400231467,1767208155780,-1000.0,0.00013821,2]
[400231468,1767208155799,-1000.0,0.00013821,2]
[400231469,1767208155819,-1000.0,0.00013821,2]
[400231470,1767208155839,-1000.0,0.00013821,2]
[400231471,1767208155858,-1000.0,0.00013821,2]
[400231472,1767208155877,-1000.0,0.00013821,2]
[400231473,1767208155896,-1000.0,0.00013821,2]
[400231474,1767208155916,-600.0,0.00014221,2]
[400231475,1767208155935,-306.11286536,0.00014247,2]
[400231476,1767208155955,-1000.0,0.00014247,2]
[400231477,1767208155974,-1000.0,0.00014247,2]
[400231478,1767208155994,-1000.0,0.00014247,2]
[400231479,1767208156014,-1000.0,0.00014247,2]
[400231480,1767208156163,-1000.0,0.00014247,2]
[400231481,1767208156183,-945.83984439,0.00014247,2]
[400231482,1767208156203,-1000.0,0.00014247,2]
[400231483,1767208156223,-1000.0,0.00014247,2]
[400231484,1767208156245,-1000.0,0.00014247,2]
[400231485,1767208156266,-164.65992373,0.00014367,2]
[400231486,1767208156288,-500.0,0.00014367,2]
[400231487,1767208156313,-500.0,0.00014367,2]
[400231488,1767208156334,-551.39543037,0.00014367,2]
[400231489,1767208156354,-500.0,0.00014367,2]
[400231490,1767208156376,-500.0,0.00014367,2]
[400231491,1767208156398,-500.0,0.00014367,2]
[400231492,1767208156421,-500.0,0.00014367,2]
[400231493,1767208156443,-500.0,0.00014367,2]
[400231494,1767208156465,-500.0,0.00014367,2]
[400231495,1767208156486,-500.0,0.00014367,2]
[400231496,1767208156507,-500.0,0.00014367,2]
[400231497,1767208156529,-500.0,0.00014367,2]
[400231498,1767208156549,-500.0,0.00014367,2]
[400231499,1767208156570,-500.0,0.00014367,2]
[400231500,1767208156591,-500.0,0.00014367,2]
[400231501,1767208156612,-426.66200588,0.00014367,2]
[400231502,1767208156633,-500.0,0.00014367,2]
[400231503,1767208156654,-500.0,0.00014367,2]
[400231504,1767208156675,-500.0,0.00014367,2]
[400231505,1767208156697,-500.0,0.00014367,2]
[400231506,1767208156718,-500.0,0.00014367,2]
[400231507,1767208156740,-500.0,0.00014367,2]
[400231508,1767208156761,-500.0,0.00014367,2]
[400231509,1767208156780,-164.0,0.00014368,2]
[400231510,1767208156801,-1500.0,0.00014368,2]
[400231511,1767208156821,-1500.0,0.00014368,2]
[400231512,1767208156840,-1500.0,0.00014368,2]
[400231513,1767208156860,-1500.0,0.00014368,2]
[400231514,1767208156880,-1500.0,0.00014368,2]
[400231515,1767208156900,-1000.0,0.00014368,2]
[400231516,1767208156920,-1000.0,0.00014368,2]
[400231517,1767208156940,-250.0,0.00014751,2]
[400231518,1767208156959,-300.0,0.00014768,2]
[400231519,1767208156982,-1500.0,0.00014795,2]
[400231520,1767208157001,-1500.0,0.00014795,2]
[400231521,1767208157023,-500.0,0.00014795,2]
[400231522,1767208157043,-1500.0,0.00014795,2]
[400231523,1767208157061,-1500.0,0.00014795,2]
[400231524,1767208157081,-1500.0,0.00014916,2]
[400231525,1767208157100,-2000.0,0.00014916,2]
[400231526,1767208157120,-2000.0,0.00014916,2]
[400231527,1767208157140,-2000.0,0.00014916,2]
[400231528,1767208157160,-1223.9947484,0.00014916,2]
[400231529,1767208157179,-800.0,0.00015068,2]
[400231530,1767208157200,-407.17423389,0.00015104,2]
[400231531,1767208157220,-2000.0,0.00015342,2]
[400231532,1767208157246,-2000.0,0.00015342,2]
[400231533,1767208157268,-1088.87,0.00015395,2]
[400231534,1767208157288,-213.76401357,0.00015464,2]
[400231535,1767208157307,-734.52490858,0.00015464,2]
[400231536,1767208157329,-2500.0,0.00015464,2]
[400231537,1767208157348,-2500.0,0.0001589,2]
[400231538,1767208157367,-2500.0,0.0001589,2]
[400231539,1767208157387,-500.0,0.00016012,2]
[400231540,1767208157408,-1600.0,0.00016164,2]
[400231541,1767208157429,-880.49277156,0.00016166,2]
[400231542,1767208172133,-182.12203946,0.00013699,2]
[400231576,1767208232034,-528.34,0.00013621,2]
[400231578,1767208232043,-1123.321112,0.00013699,2]
[400231580,1767208232052,-317.87796054,0.00013699,2]
[400231582,1767208232061,-30.46092746,0.00013699,2]
[400231584,1767208232072,-469.53907254,0.00013699,2]
[400231586,1767208232081,-1000.0,0.00014247,2]
[400231588,1767208232090,-24208.6811175,0.00014957,2]
[400231590,1767208232099,-250.0,0.00015449,2]
[400231592,1767208232109,-1056.67,0.00015891,2]
[400231594,1767208232118,-2034.19118761,0.00016166,2]
[400231596,1767208232127,-280.77095909,0.00016443,2]